fUSD/lending_fUSD_20240821
["ID","MTS","AMOUNT","RATE_DAILY","PERIOD"]
[335479426,1724261432209,-1085.42033485,0.00011,2]
[335479427,1724261432232,-533.6,0.00011,2]
[335479428,1724261432244,-460.43123519,0.00011,2]
[335479429,1724261432255,-943.09082566,0.00011,2]
[335479430,1724261432267,-1909.75436645,0.00011,2]
[335479431,1724261432278,-517.85511205,0.00011,2]
[335479432,1724261432289,-820.87408869,0.00011,2]
[335479433,1724261432301,-16703.44701362,0.00011,2]
[335479434,1724261432312,-2026.65030258,0.00011,2]
[335479435,1724261432323,-658.25,0.00011,2]
[335479436,1724261432338,-2678.0863352,0.00011,2]
[335479442,1724261437592,-309.47911508,0.00010471,2]
[335479443,1724261437603,-663.74319754,0.00011,2]
[335479444,1724261437614,-1177.0,0.00011,2]
[335479445,1724261437625,-281.55,0.00011,2]
[335479446,1724261437742,-18716.99087636,0.00011,2]
[335479447,1724261437773,-3006.19519999,0.00011,2]
[335479448,1724261437785,-438.848,0.00011,2]
[335479449,1724261437796,-822.49017547,0.00011,2]
[335479450,1724261437808,-10574.34966219,0.00011,2]
[335479451,1724261437838,-609.04084905,0.00011,2]
[335479452,1724261437849,-2084.0327375,0.00011,2]
[335479453,1724261437860,-2158.98320904,0.00011,2]
[335479454,1724261437954,-1463.76336,0.00011,2]
[335479455,1724261437965,-3253.18471337,0.00011,2]
[335479457,1724261437977,-6343.80348218,0.00011,2]
[335479458,1724261437991,-1251.34130064,0.00011,2]
[335479459,1724261438006,-729.82228752,0.00011,2]
[335479460,1724261438019,-289.4002629,0.00011,2]
[335479461,1724261438032,-2183.16426548,0.00011,2]
[335479462,1724261438044,-13958.78096152,0.00011,2]
[335479463,1724261438055,-6337.13189121,0.00011,2]
[335479479,1724261438247,-355.55693075,0.00011,2]
[335479584,1724261439732,-7217.80228428,0.00011,2]
[335479585,1724261439847,-2954.1894928,0.00011,2]
[335479586,1724261439908,-630.25841339,0.00011,2]
[335479587,1724261439919,-847.02556474,0.00011,2]
[335479588,1724261439971,-1120.29316873,0.00011,2]
[335479589,1724261439982,-1996.63119945,0.00011,2]
[335479590,1724261439997,-3540.07767609,0.00011,2]
[335479591,1724261440008,-3474.04327968,0.00011,2]
[335479592,1724261440019,-3094.16293897,0.00011,2]
[335479593,1724261440030,-16876.40537994,0.00011,2]
[335479594,1724261440041,-503.32076096,0.00011,2]
[335479595,1724261440056,-441.48538942,0.00011,2]
[335479596,1724261440068,-2141.25728077,0.00011,2]
[335479597,1724261440152,-4276.48182047,0.00011,2]
[335479598,1724261440166,-1799.52,0.00011,2]
[335479599,1724261440177,-662.70634916,0.00011,2]
[335479600,1724261440265,-902.16144431,0.00011,2]
[335479601,1724261440276,-505.53116172,0.00011,2]
[335479602,1724261440314,-341343.43460052,0.00011,2]
[335479603,1724261440325,-939.63137312,0.00011,2]
[335479629,1724261442799,-5200.0,0.00011,2]
[335479630,1724261442861,-487.02961776,0.00011,2]
[335479631,1724261442872,-614.91,0.00011,2]
[335479632,1724261442883,-622.9,0.00011,2]
[335479633,1724261442894,-4134.07317211,0.00011,2]
[335479634,1724261442907,-1942.04386883,0.00011,2]
[335479635,1724261442930,-2498.71308687,0.00011,2]
[335479642,1724261443588,-475.67259041,0.00011,2]
[335479643,1724261443599,-486.24191228,0.00011,2]
[335479644,1724261443621,-397.83858625,0.00011,2]
[335479645,1724261443632,-8264.97603201,0.00011,2]
[335479655,1724261445715,-559.97708053,0.00011,2]
[335479656,1724261445831,-655.99722197,0.00011,2]
[335479657,1724261445849,-549.85659396,0.00011,2]
[335479658,1724261445860,-1774.4753,0.00011,2]
[335479659,1724261446028,-711.38074383,0.00011,2]
[335479660,1724261446043,-2073.29355406,0.00011,2]
[335479664,1724261594144,150.0,9.87e-05,2]
[335479665,1724261594164,150.0,9.87e-05,2]
[335479666,1724261594184,150.0,9.87e-05,2]
[335479667,1724261594204,150.0,9.87e-05,2]
[335479668,1724261594225,150.0,9.87e-05,2]
[335479669,1724261594245,150.0,9.87e-05,2]
[335479670,1724261594264,150.0,9.87e-05,2]
[335479671,1724261594284,150.0,9.87e-05,2]
[335479672,1724261594304,182.237595,9.87e-05,2]
[335479673,1724261594326,22.564605,9.87e-05,2]
[335479679,1724261713603,150.0,9.852e-05,2]
[335479680,1724261713625,150.0,9.852e-05,2]
[335479681,1724261713646,45.87,9.852e-05,2]
[335479683,1724261789432,155.0,9.852e-05,2]
[335479695,1724262159840,-175.16,9.926e-05,2]
[335479696,1724262166917,-667.08147751,9.926e-05,2]
[335479697,1724262167626,-150.0,9.926e-05,2]
[335479698,1724262168449,-150.0,9.926e-05,2]
[335479700,1724262218477,150.0,8.219e-05,2]
[335479701,1724262218498,150.0,8.219e-05,2]
[335479702,1724262218519,28.57,8.219e-05,2]
[335479703,1724262220719,121.43,9.914e-05,2]
[335479704,1724262220740,93.2,9.914e-05,2]
[335479705,1724262311712,150.0,9.914e-05,2]
[335479706,1724262311734,150.0,9.914e-05,2]
[335479707,1724262311757,150.0,9.914e-05,2]
[335479708,1724262311788,150.0,9.914e-05,2]
[335479709,1724262311813,1.00810507,9.914e-05,2]
[335479710,1724262331673,-150.0,9.914e-05,2]
[335479711,1724262331867,-150.0,9.914e-05,2]
[335479712,1724262331943,-150.0,9.914e-05,2]
[335479713,1724262332060,-150.0,9.914e-05,2]
[335479714,1724262332175,-93.81147751,9.914e-05,2]
[335479715,1724262348621,150.0,9.914e-05,2]
[335479716,1724262348641,150.0,9.914e-05,2]
[335479717,1724262391521,150.0,9.914e-05,2]
[335479718,1724262391542,141.75703505,9.914e-05,2]
[335479720,1724262407209,150.0,9.914e-05,2]
[335479721,1724262407229,150.0,9.914e-05,2]
[335479722,1724262407249,150.0,9.914e-05,2]
[335479723,1724262407269,150.0,9.914e-05,2]
[335479724,1724262407289,150.0,9.914e-05,2]
[335479725,1724262407309,150.0,9.914e-05,2]
[335479726,1724262514726,150.0,9.914e-05,2]
[335479727,1724262514747,150.0,9.914e-05,2]
[335479728,1724262514768,150.0,9.914e-05,2]
[335479729,1724262514789,150.0,9.914e-05,2]
[335479730,1724262514810,150.0,9.914e-05,2]
[335479731,1724262514907,-150.0,9.914e-05,2]
[335479732,1724262514984,-150.0,9.914e-05,2]
[335479733,1724262584001,150.0,9.875e-05,2]
[335479734,1724262584024,150.0,9.875e-05,2]
[335479735,1724262584048,117.167595,9.875e-05,2]
[335479736,1724262600848,150.0,9.914e-05,2]
[335479737,1724262600873,150.0,9.914e-05,2]
[335479738,1724262600897,160.22715233,9.914e-05,2]
[335479739,1724262603699,-150.0,9.914e-05,2]
[335479740,1724262603922,-150.0,9.914e-05,2]
[335479741,1724262604051,-150.0,9.914e-05,2]
[335479742,1724262604164,-139.77284767,9.914e-05,2]
[335479750,1724262631722,-495.0,9.925e-05,2]
[335479751,1724262631731,-32.91852249,9.926e-05,2]
[335479752,1724262631741,-1212.08147751,0.00010009,2]
[335479753,1724262631751,-943.65948572,0.00010009,2]
[335479754,1724262631776,-499.60047608,0.00010009,2]
[335479755,1724262631836,-1635.80047111,0.00010009,2]
[335479756,1724262631847,-5363.20000002,0.00010009,2]
[335479757,1724262631895,-465.0,0.00010009,2]
[335479797,1724262638202,-652.16989619,0.00010009,2]
[335479799,1724262638216,-517.33582926,0.00010009,2]
[335479801,1724262638228,-1202.39730484,0.00010009,2]
[335479804,1724262638241,-5873.22356511,0.00010009,2]
[335479807,1724262638267,-771.07115909,0.00010009,2]
[335479810,1724262638280,-593.26334,0.00010009,2]
[335479812,1724262638292,-270.9400001,0.00010009,2]
[335479986,1724262639915,-3551.38360918,0.00010009,2]
[335479988,1724262639926,-2778.37187532,0.00010009,2]
[335479990,1724262639937,-522.77982189,0.00010009,2]
[335479992,1724262639947,-302.98,0.00010009,2]
[335479996,1724262639972,-3796.89804238,0.00010009,2]
[335479998,1724262639983,-4785.99981199,0.00010009,2]
[335480000,1724262639992,-328.57,0.00010471,2]
[335480002,1724262640001,-236.34424982,0.00010505,2]
[335480004,1724262640010,-164.40260801,0.00010566,2]
[335480006,1724262640022,-1093.96961008,0.00010725,2]
[335480008,1724262640030,-150.0,0.00010727,2]
[335480010,1724262640039,-151.125835,0.0001075,2]
[335480012,1724262640048,-297.93136062,0.0001076,2]
[335480014,1724262640058,-150.0,0.0001076,2]
[335480016,1724262640067,-300.14751839,0.00010772,2]
[335480018,1724262640076,-1500.0,0.00010798,2]
[335480019,1724262640085,-1500.0,0.00010799,2]
[335480021,1724262640094,-1500.0,0.00010811,2]
[335480023,1724262640103,-150.0,0.0001083,2]
[335480025,1724262640113,-1500.0,0.0001083,2]
[335480027,1724262640122,-7075.62,0.00010831,2]
[335480029,1724262640131,-1500.0,0.00010832,2]
[335480030,1724262640140,-303.44197528,0.00010862,2]
[335480032,1724262640148,-478.21553409,0.00010862,2]
[335480033,1724262640159,-1500.0,0.00010873,2]
[335480034,1724262640168,-1500.0,0.00010887,2]
[335480035,1724262640176,-1500.0,0.00010887,2]
[335480036,1724262640185,-155.0,0.00010888,2]
[335480037,1724262640196,-380.32741541,0.00010888,2]
[335480038,1724262640205,-510.89036362,0.00010888,2]
[335480039,1724262640214,-155.0,0.00010888,2]
[335480040,1724262640223,-432.47832469,0.00010888,2]
[335480041,1724262640232,-600.74422133,0.00010888,2]
[335480042,1724262640242,-197.1386879,0.00010888,2]
[335480043,1724262640251,-917.68443,0.0001089,2]
[335480044,1724262640260,-334.02447579,0.0001089,2]
[335480045,1724262640272,-309.47911508,0.0001089,2]
[335480046,1724262640281,-357.45302385,0.0001089,2]
[335480047,1724262640290,-238.78046865,0.0001089,2]
[335480048,1724262640299,-155.16643418,0.0001089,2]
[335480049,1724262640308,-601.65421845,0.0001089,2]
[335480050,1724262640317,-418.59085168,0.0001089,2]
[335480051,1724262640327,-328.2488375,0.0001089,2]
[335480052,1724262640336,-367.87511774,0.0001089,2]
[335480053,1724262640345,-150.0,0.00010893,2]
[335480054,1724262640354,-1026.30342348,0.00010893,2]
[335480055,1724262640363,-150.0,0.00010896,2]
[335480056,1724262640372,-172.00474581,0.00010896,2]
[335480057,1724262640382,-183.18345965,0.00010898,2]
[335480058,1724262640391,-1525.10973575,0.00010899,2]
[335480059,1724262640404,-255.19609183,0.00010899,2]
[335480060,1724262640413,-152.79080492,0.000109,2]
[335480061,1724262640423,-1088.95155989,0.000109,2]
[335480062,1724262640434,-514.40349825,0.000109,2]
[335480063,1724262640443,-198.373217,0.000109,2]
[335480064,1724262640452,-198.37321698,0.000109,2]
[335480065,1724262640461,-198.37321698,0.000109,2]
[335480067,1724262640471,-150.0,0.00010904,2]
[335480069,1724262640480,-350.08485079,0.00010912,2]
[335480071,1724262640491,-1149.91514921,0.00010912,2]
[335480073,1724262640500,-300.0,0.00010918,2]
[335480075,1724262640509,-566.52211679,0.00010932,2]
[335480078,1724262640532,-933.47788321,0.00010932,2]
[335480079,1724262640541,-150.0,0.0001094,2]
[335480082,1724262640550,-848.20939797,0.00010943,2]
[335480091,1724262640608,-379.92281536,0.00010943,2]
[335480093,1724262640619,-271.86778667,0.00010943,2]
[335480095,1724262640628,-155.0,0.00010949,2]
[335480097,1724262640637,-152.74,0.00010959,2]
[335480099,1724262640647,-156.7,0.00010959,2]
[335480100,1724262640656,-150.0,0.00010959,2]
[335480102,1724262640665,-250.0,0.00010959,2]
[335480104,1724262640675,-2000.0,0.00010959,2]
[335480106,1724262640684,-794.0,0.00010967,2]
[335480108,1724262640693,-200.0,0.00010973,2]
[335480110,1724262640703,-200.0,0.00010973,2]
[335480112,1724262640712,-203.41395605,0.00010979,2]
[335480114,1724262640721,-528.91996067,0.00010979,2]
[335480116,1724262640730,-263.2636356,0.0001098,2]
[335480118,1724262640739,-646.57220746,0.00010985,2]
[335480120,1724262640750,-471.55023249,0.00010985,2]
[335480122,1724262640762,-381.87756005,0.00010985,2]
[335480124,1724262640774,-1119.42243995,0.00010987,2]
[335480126,1724262640785,-344.62556429,0.00010987,2]
[335480128,1724262640799,-1043.21965598,0.00010987,2]
[335480130,1724262640811,-285.0515496,0.00010987,2]
[335480132,1724262640820,-500.0,0.00010989,2]
[335480134,1724262640828,-501.49882417,0.00010989,2]
[335480136,1724262640837,-383.6206245,0.00010989,2]
[335480138,1724262640846,-85.05589081,0.0001099,2]
[335480140,1724262640857,-178.20774479,0.0001099,2]
[335480142,1724262640867,-498.26709477,0.0001099,3]
[335480144,1724262640878,-1125.95213341,0.0001099,3]
[335480147,1724262640897,-5921.71006796,0.0001099,3]
[335480150,1724262640909,-3500.0,0.0001099,3]
[335480152,1724262640920,-284.0,0.0001099,3]
[335480337,1724262642867,-330.34282033,0.00010949,2]
[335480339,1724262642877,-8292.31930921,0.0001099,3]
[335480341,1724262642888,-1951.24999987,0.0001099,3]
[335480343,1724262642900,-1448.63415379,0.0001099,3]
[335480348,1724262642933,-666.41,0.0001099,3]
[335480350,1724262642944,-14700.83896024,0.0001099,3]
[335480352,1724262642955,-1656.16099867,0.0001099,3]
[335480354,1724262642966,-1039.9999,0.0001099,3]
[335480363,1724262643048,-649.43409021,0.0001099,3]
[335480365,1724262643059,-3953.81927455,0.0001099,3]
[335480367,1724262643071,-877.60613837,0.0001099,3]
[335480369,1724262643083,-22528.8526588,0.0001099,3]
[335480371,1724262643094,-5130.95572728,0.0001099,3]
[335480373,1724262643105,-5453.45619711,0.0001099,3]
[335480375,1724262643115,-1507.29,0.0001099,3]
[335480377,1724262643127,-600.34827093,0.0001099,3]
[335480379,1724262643138,-600.56360976,0.0001099,3]
[335480383,1724262643164,-498.7999998,0.0001099,3]
[335480385,1724262643175,-2721.87978134,0.0001099,3]
[335480387,1724262643187,-4650.0,0.0001099,3]
[335480390,1724262643198,-711.66079676,0.0001099,3]
[335480446,1724262643754,-512.08283306,0.0001099,3]
[335480449,1724262643769,-432595.9098662,0.0001099,3]
[335480451,1724262643780,-1381.28,0.0001099,3]
[335480666,1724262645866,-4162.69224819,9.999e-05,2]
[335480668,1724262645878,-339.85792458,9.999e-05,2]
[335480673,1724262645925,-599.38775637,9.999e-05,2]
[335480675,1724262645937,-30636.21823665,9.999e-05,2]
[335480677,1724262645947,-155.0,0.00010899,2]
[335480679,1724262645956,-753.60996255,0.0001099,3]
[335480683,1724262645986,-3604.75092635,0.0001099,3]
[335480685,1724262645997,-604.0,0.0001099,3]
[335480687,1724262646008,-5360.8,0.0001099,3]
[335480689,1724262646019,-3888.80813399,0.0001099,3]
[335480693,1724262646047,-508.86299617,0.0001099,3]
[335480695,1724262646058,-28981.58232017,0.0001099,3]
[335480697,1724262646069,-5917.9735355,0.0001099,3]
[335481788,1724262658521,150.0,9.875e-05,2]
[335481789,1724262658546,150.0,9.875e-05,2]
[335481790,1724262658568,150.0,9.875e-05,2]
[335481791,1724262658590,150.0,9.875e-05,2]
[335481792,1724262658611,150.0,9.875e-05,2]
[335481793,1724262658632,150.0,9.875e-05,2]
[335481794,1724262658653,206.09715233,9.875e-05,2]
[335481795,1724262658680,328.59511055,9.875e-05,2]
[335482616,1724262727489,264.85331029,9.875e-05,2]
[335482617,1724262757040,600.0,9.875e-05,2]
[335482618,1724262767932,310.65,8.219e-05,2]
[335482619,1724262779300,1273.66432939,9.875e-05,2]
[335482620,1724262802583,500.0,8.219e-05,2]
[335482621,1724262802936,978.0,8.219e-05,2]
[335482622,1724262883625,197.26,8.038e-05,2]
[335482623,1724262944477,3023.2111903,9.743e-05,2]
[335482625,1724263307415,295.11,8.219e-05,2]
[335482634,1724263517945,169.65,9.789e-05,2]
[335482635,1724263558358,183.9,9.882e-05,2]
[335482640,1724263761477,1515.1,9.883e-05,2]
[335482641,1724263803353,280.35,8.219e-05,2]
[335482642,1724263825812,1000.0,9.78e-05,2]
[335482648,1724263831965,-154.65,9.921e-05,2]
[335482649,1724263831975,-184.0,9.931e-05,2]
[335482650,1724263831984,-195.87932402,9.931e-05,2]
[335482651,1724263831993,-148.73323789,9.965e-05,2]
[335482652,1724263832062,-47.14608611,9.965e-05,2]
[335482653,1724263832072,-303.31542784,9.988e-05,2]
[335482654,1724263832086,-685.05424735,9.988e-05,2]
[335482655,1724263832184,-2638.07967468,9.988e-05,2]
[335482656,1724263832195,-548.16321584,9.988e-05,2]
[335482677,1724263837975,-486.8664811,9.988e-05,2]
[335482680,1724263838088,-31076.67711898,9.988e-05,2]
[335482681,1724263838100,-2388.15575194,9.988e-05,2]
[335482682,1724263838110,-300.0,9.998e-05,2]
[335482683,1724263838122,-195.879324,9.999e-05,2]
[335482684,1724263838132,-1050.0,0.0001,2]
[335482685,1724263838143,-150.0,0.00010008,2]
[335482686,1724263838153,-155.0,0.00010026,2]
[335482687,1724263838164,-307.21,0.00010166,2]
[335482688,1724263838175,-280.35,0.00010469,2]
[335482689,1724263838185,-1346.82658849,0.00010471,2]
[335482690,1724263838196,-12164.63,0.00010473,2]
[335482691,1724263838206,-22424.55,0.00010473,2]
[335482692,1724263838216,-29999.99,0.00010473,2]
[335482693,1724263838226,-203.91,0.00010505,2]
[335482694,1724263838236,-6676.68,0.00010505,2]
[335482695,1724263838246,-334.02447579,0.0001069,2]
[335482696,1724263838255,-151.02554851,0.00010726,2]
[335482697,1724263838265,-153.57045411,0.0001077,2]
[335482698,1724263838275,-150.82,0.0001077,2]
[335482699,1724263838285,-200.0,0.00010773,2]
[335482700,1724263838294,-200.0,0.00010773,2]
[335482701,1724263838304,-155.39116627,0.00010773,2]
[335482702,1724263838313,-19557.1826684,0.0001078,2]
[335482703,1724263838332,-1346.82658849,0.0001078,2]
[335482706,1724263838355,-592.08569065,0.0001078,2]
[335482708,1724263838367,-12277.12637805,0.0001078,2]
[335482710,1724263838379,-2632.30416001,0.0001078,2]
[335482874,1724263840084,-15615.97172731,0.0001078,2]
[335482877,1724263840114,-850.82998,0.0001078,2]
[335482878,1724263840144,-2958.0,0.0001078,2]
[335482879,1724263840253,-412.39,0.0001078,2]
[335482880,1724263840265,-614.42952318,0.0001078,2]
[335482881,1724263840347,-308.94361421,0.0001078,2]
[335482882,1724263840470,-520790.5517697,0.0001078,2]
[335482883,1724263840479,-223.376,0.0001078,2]
[335482884,1724263840489,-243.79,0.0001079,2]
[335482885,1724263840498,-601.08957958,0.00010861,2]
[335482886,1724263840507,-153.57045411,0.0001087,2]
[335482887,1724263840517,-500.0,0.00010873,2]
[335482888,1724263840526,-3645.73148868,0.00010877,2]
[335482889,1724263840536,-150.82742913,0.00010879,2]
[335482890,1724263840546,-1257021.56569268,0.0001088,2]
[335482892,1724263840556,-11496.33475636,0.0001088,2]
[335482894,1724263840566,-965.64391,0.0001088,2]
[335482895,1724263840580,-309.47911508,0.00010888,2]
[335482896,1724263840589,-887.10573254,0.0001089,2]
[335482897,1724263840598,-2668.92528473,0.0001089,2]
[335482898,1724263840608,-176.2623,0.0001089,2]
[335482899,1724263840618,-3888.8824,0.0001089,2]
[335482900,1724263840627,-7098.9808,0.0001089,2]
[335482901,1724263840637,-3329.8603,0.0001089,2]
[335482902,1724263840646,-4289.745,0.0001089,2]
[335482903,1724263840655,-9967.7323,0.0001089,2]
[335482904,1724263840665,-54179.3871,0.0001089,2]
[335482905,1724263840674,-887.10573253,0.00010895,2]
[335482906,1724263840683,-2668.92528473,0.00010895,2]
[335482907,1724263840693,-162.97553613,0.00010898,2]
[335482908,1724263840702,-173.65727469,0.00010899,2]
[335482909,1724263840712,-1421.57661271,0.00010899,2]
[335482911,1724263840722,-41633.34292129,0.000109,2]
[335482912,1724263840731,-887.10573253,0.000109,2]
[335482914,1724263840741,-1000.0,0.000109,2]
[335482916,1724263840750,-1007.0,0.000109,2]
[335482918,1724263840760,-500.0,0.00010958,2]
[335482920,1724263840770,-500.0,0.00010958,2]
[335482922,1724263840779,-319.3792169,0.00010958,2]
[335482924,1724263840794,-500.0,0.00010958,2]
[335482926,1724263840803,-500.0,0.00010958,2]
[335482928,1724263840813,-500.0,0.00010958,2]
[335482929,1724263840823,-159.22,0.00010959,2]
[335482931,1724263840833,-153.75,0.00010959,2]
[335482933,1724263840843,-250.0,0.00010959,2]
[335482935,1724263840852,-422.35,0.00010959,2]
[335482937,1724263840862,-500.0,0.00010973,2]
[335482939,1724263840872,-153.57045411,0.00010988,2]
[335482941,1724263840882,-150.82,0.00010988,2]
[335482943,1724263840892,-865978.81384993,0.0001099,3]
[335482945,1724263840901,-1051.05102404,0.0001099,2]
[335482947,1724263840910,-485.07840464,0.0001099,2]
[335482949,1724263840920,-2000.0,0.0001099,2]
[335482951,1724263840930,-200.0,0.0001099,2]
[335482953,1724263840939,-150.82,0.0001099,2]
[335482955,1724263840948,-150.82,0.0001099,2]
[335482957,1724263840958,-977412.06405826,0.00010998,2]
[335482959,1724263840969,-151.0,0.00010998,2]
[335482961,1724263840978,-151.0,0.00010998,2]
[335482963,1724263840988,-151.0,0.00010998,2]
[335482965,1724263840997,-151.0,0.00010998,2]
[335482967,1724263841006,-243.665398,0.00010998,2]
[335482969,1724263841015,-151.0,0.00010998,2]
[335482972,1724263841027,-420.0,0.00010998,2]
[335482974,1724263841037,-151.0,0.00010998,2]
[335482976,1724263841046,-120775.00145725,0.00010998,2]
[335482978,1724263841056,-105423.36610821,0.00010998,2]
[335482980,1724263841066,-150.30944536,0.00010999,2]
[335482982,1724263841078,-1853.75639391,0.00010999,2]
[335482984,1724263841087,-151.0,0.00010999,2]
[335482986,1724263841096,-151.0,0.00010999,2]
[335482988,1724263841105,-720581.88932737,0.00011,2]
[335482990,1724263841117,-470.89476816,0.00011,2]
[335482992,1724263841128,-975.50742252,0.00011,2]
[335482994,1724263841139,-807.664508,0.00011,2]
[335482996,1724263841150,-874.77,0.00011,2]
[335482998,1724263841161,-806.25696859,0.00011,2]
[335483001,1724263841173,-485.3980518,0.00011,2]
[335483003,1724263841186,-784.99523118,0.00011,2]
[335483162,1724263843175,-40202.10488403,0.00011,2]
[335483163,1724263843186,-5980.48427293,0.00011,2]
[335483164,1724263843198,-301.8099,0.00011,2]
[335483165,1724263843210,-394.59,0.00011,2]
[335483166,1724263843225,-5759.89368103,0.00011,2]
[335483223,1724263843999,-22523.484207,0.00011,2]
[335483371,1724263846136,-155.0,0.00010009,2]
[335483372,1724263846146,-753.94469596,0.000109,2]
[335483733,1724264497852,252.31,8.531e-05,2]
[335483739,1724264547319,839.8961087,8.531e-05,2]
[335483742,1724264556541,211.85239586,8.531e-05,2]
[335483743,1724264561170,752.83186383,8.531e-05,2]
[335483744,1724264564092,240.41734105,8.531e-05,2]
[335483752,1724264578589,20410.02713101,8.531e-05,2]
[335483759,1724264625512,7260.09042563,8.531e-05,2]
[335483761,1724264628304,693.69786065,8.531e-05,2]
[335483764,1724264674425,3145.61580839,8.531e-05,2]
[335483765,1724264681596,10693.24061787,8.531e-05,2]
[335483782,1724264730429,904.48338785,8.531e-05,2]
[335483783,1724264737763,304.77980935,9.9e-05,2]
[335483784,1724264750307,693.57471487,9.9e-05,2]
[335483787,1724264782433,1995.16506776,9.9e-05,2]
[335483808,1724265008993,239.69,8.219e-05,2]
[335483809,1724265010274,200.0,9.87e-05,2]
[335483810,1724265010557,250.0,9.87e-05,2]
[335483831,1724265032143,-277.9595,9.92e-05,2]
[335483834,1724265032163,-945.20479722,9.92e-05,2]
[335483839,1724265032187,-627.85298596,9.92e-05,2]
[335483840,1724265032199,-1.40271682,9.92e-05,2]
[335483841,1724265032209,-298.41,9.938e-05,2]
[335483842,1724265032219,-949.54206571,9.941e-05,2]
[335483843,1724265032228,-300.0,9.942e-05,2]
[335483844,1724265032238,-8624.93183406,9.943e-05,2]
[335483845,1724265032276,-1440.43885463,9.943e-05,2]
[335483846,1724265032288,-706.11031433,9.943e-05,2]
[335483847,1724265032442,-4178.92499571,9.943e-05,2]
[335483906,1724265037314,35738.15616579,9.86e-05,2]
[335483908,1724265038235,-800.0,9.983e-05,2]
[335483909,1724265038244,-1050.0,0.0001,2]
[335483910,1724265038254,-228.87763463,0.0001,2]
[335483911,1724265038263,-4776.73659752,0.0001,2]
[335483912,1724265038272,-438.7702881,0.00010026,2]
[335483913,1724265038282,-9831.86,0.00010038,2]
[335483914,1724265038291,-172.77042105,0.00010097,2]
[335483915,1724265038300,-2009.04366656,0.000101,2]
[335483916,1724265038309,-2315.02,0.00010165,2]
[335483917,1724265038319,-245.77,0.00010382,2]
[335483918,1724265038327,-278.78,0.00010449,2]
[335483919,1724265038336,-200.0,0.00010463,2]
[335483920,1724265038346,-239.69,0.00010473,2]
[335483921,1724265038355,-9339.13,0.00010488,2]
[335483922,1724265038366,-2578.92,0.00010488,2]
[335483923,1724265038375,-8003.4016325,0.00010488,2]
[335483924,1724265038388,-5533.35431226,0.00010488,2]
[335483925,1724265038406,-9240.00405524,0.00010488,2]
[335483926,1724265038416,-272.63843481,0.00010488,2]
[335483927,1724265038428,-164.31156519,0.00010488,2]
[335483928,1724265038437,-522.16077607,0.00010888,2]
[335483929,1724265038446,-804.70326,0.0001089,2]
[335483930,1724265038456,-266.23512505,0.0001089,2]
[335483931,1724265038478,-63.91670832,0.0001089,2]
[335483932,1724265038487,-200.32329168,0.00010899,2]
[335483934,1724265038498,-42.20301383,0.00010899,2]
[335483935,1724265038508,-155.0,0.00010899,2]
[335483936,1724265038517,-300.1872949,0.000109,2]
[335483937,1724265038526,-155.043018,0.000109,2]
[335483938,1724265038536,-181.97999253,0.000109,2]
[335483939,1724265038546,-217.3351853,0.000109,2]
[335483940,1724265038557,-267.74321934,0.000109,2]
[335483941,1724265038566,-41.81592412,0.000109,2]
[335483942,1724265038578,-131.84135057,0.000109,2]
[335483944,1724265038588,-413.35824992,0.000109,2]
[335483946,1724265038598,-162.82516724,0.000109,2]
[335483948,1724265038608,-293.0356,0.000109,2]
[335483950,1724265038621,-1.75515228,0.000109,2]
[335483982,1724265038889,-1048.24372048,0.000109,2]
[335483984,1724265038899,-534.50786604,0.000109,2]
[335483986,1724265038909,-420.0,0.00010936,2]
[335483988,1724265038918,-181.51,0.00010959,2]
[335483990,1724265038928,-250.0,0.00010959,2]
[335483992,1724265038938,-156.7,0.00010959,2]
[335483994,1724265038947,-200.0,0.00010973,2]
[335483996,1724265038957,-200.0,0.00010973,2]
[335483998,1724265038967,-1020.00472426,0.00010979,2]